Cogmind - Beta 15 @@@ ROGUE MODE // 2025.10.10 @ 17:20:22 Player: AussieBBQ Result: Self-destructed Performance ------------- Evolutions (3) 1500 Regions Visited (8) 1600 Robots Destroyed (54) 270 Value Destroyed (1196) 1196 Prototype IDs (29) 580 Alien Tech Used (0) 0 Bonus (341) 341 TOTAL SCORE: 5487 Bonus ------- Follower Combat Kills 41 Aligned with FarCom 300 Cogmind --------- Core Integrity 476/700 Matter 165/300 Energy 140/140 System Corruption 0% Temperature Cool (0) Movement Hovering (120) Ox1 Location -7/Factory Parts ------- > --- POWER (1) -------- Light Deuterium Engine > --- PROPULSION (5) --- Improved Hover Unit VTOL Module Improved Flight Unit > --- UTILITY (5) ------ Modified TNC Hacking Suite System Shield > --- WEAPON (2) ------- Chainsword > --- INVENTORY (5) ---- Improved Heat Sink Recalibrator Mini Grenade Launcher Heavy Flail Peak State ------------ > --- POWER ------------ Light Nuclear Core > --- PROPULSION ------- Improved Hover Unit Gravmag System VTOL Module Improved Flight Unit > --- UTILITY ---------- Modified TNC Hacking Suite Hacking Suite System Shield > --- WEAPON ----------- Chainsword > --- INVENTORY -------- Light Deuterium Engine Improved Heat Sink Recalibrator Mini Grenade Launcher Heavy Flail [Rating: 34] Favorites ----------- Power Light Angular Momentum Engine Engine Light Angular Momentum Engine Power Core Light Nuclear Core Propulsion Light Treads Treads Light Treads Leg Carbon-fiber Leg Wheel Wheel Hover Unit Gravmag System Flight Unit Improved Flight Unit Utility Improved Heat Sink Device Improved Heat Sink Storage Medium Storage Unit Processor Modified TNC Hackware Hacking Suite Protection Light Armor Plating Weapon Improved Assault Rifle Energy Gun Small Laser Ballistic Gun Improved Assault Rifle Launcher Mini Grenade Launcher Special Weapon Mining Laser Impact Weapon Heavy Flail Slashing Weapon Chainsword Build | -11 -10 -10 -9 -9 -9 -8 -8 -7 ------- Run | Yrd Mat Min Mat Min Exi Min Mat Fac Slots Evolved 6 | . . . 2 . . . 2 2 Power . | . . . . . . . . . Propulsion 3 | . . . 1 . . . 2 . Utility 3 | . . . 1 . . . . 2 Weapon . | . . . . . . . . . Parts Attached 52 | 7 8 . 10 7 2 4 5 9 Power 6 | 1 1 . 1 2 . . . 1 Engine 5 | 1 1 . 1 2 . . . . Core 1 | . . . . . . . . 1 Reactor . | . . . . . . . . . Propulsion 18 | 1 3 . 5 2 . 2 2 3 Treads 12 | 1 3 . 4 2 . . 2 . Leg 1 | . . . . . . 1 . . Wheel 1 | . . . . . . 1 . . Hover 2 | . . . . . . . . 2 Flight 2 | . . . 1 . . . . 1 Utility 14 | 2 2 . 2 1 2 . 1 4 Device 4 | 1 1 . . 1 . . . 1 Storage 3 | 1 1 . . . 1 . . . Processor 3 | . . . 2 . 1 . . . Hackware 3 | . . . . . . . 1 2 Protection 1 | . . . . . . . . 1 Artifact . | . . . . . . . . . Weapon 14 | 3 2 . 2 2 . 2 2 1 Energy Gun 3 | 3 . . . . . . . . Energy Cannon . | . . . . . . . . . Ballistic Gun 6 | . 2 . 2 1 . 1 . . Ballistic Cannon . | . . . . . . . . . Launcher 2 | . . . . 1 . 1 . . Special Weapon 1 | . . . . . . . 1 . Impact Weapon 1 | . . . . . . . 1 . Slashing Weapon 1 | . . . . . . . . 1 Piercing Weapon . | . . . . . . . . . Special Melee Weapon . | . . . . . . . . . Unidentified Prototypes 2 | . 1 . 1 . . . . . Parts Lost 14 | . 2 . 1 3 . 1 2 5 Power 2 | . . . . . . . . 2 Propulsion 7 | . 1 . . 2 . 1 2 1 Utility 4 | . 1 . . 1 . . . 2 Weapon 1 | . . . 1 . . . . . Highest Loss Streak 3 | . 1 . 1 2 . 1 1 3 To Critical Strikes 1 | . . . 1 . . . . . Average Backups 8 | 5 8 10 9 9 10 8 11 4 Power 1 | . 1 1 1 1 2 2 2 1 Propulsion 1 | 3 1 2 2 2 1 1 2 . Utility 1 | . 1 2 2 2 2 2 3 1 Weapon 3 | . 4 5 4 4 5 3 4 1 Tool/Special . | . . . . . . . . . Unused Backups 8 | . 4 . 1 1 . . . 2 Power 1 | . . . . 1 . . . . Propulsion 4 | . 4 . . . . . . . Utility 3 | . . . 1 . . . . 2 Weapon . | . . . . . . . . . Tool/Special . | . . . . . . . . . Average Slot Usage (%) 89 | . 93 100 97 96 66 97 84 71 Engine 10 | . 14 14 11 11 11 11 9 2 Treads 22 | . 24 28 31 30 22 18 13 1 Leg 1 | . . . . . . 10 8 . Wheel 1 | . . . . . . 2 9 . Flight 1 | . . . . . . . . 14 Device 11 | . 11 14 11 15 16 11 . 4 Storage 9 | . 14 14 11 11 11 11 9 . Processor 6 | . . . 9 5 5 11 9 7 Hackware 2 | . . . . . . . 8 15 Ballistic Gun 16 | . 23 28 22 21 . 20 14 . Peak Build Rating 34 | 8 14 14 19 22 19 27 28 34 Average Rating 19 | 4 12 14 16 18 17 26 27 29 On Entrance 16 | . 8 14 14 17 22 19 27 24 Naked Turns . | . . . . . . . . . Heaviest Build 56 | 12 20 20 24 27 50 56 56 56 Greatest Support 60 | 20 40 40 60 60 40 40 40 16 Greatest Overweight (x) 5 | . . . 1 1 1 5 5 5 Average Overweight (x) . | . . . . . . 2 3 1 Largest Inventory Capacity 20 | 8 10 10 10 10 20 20 20 20 Average Capacity 11 | 7 8 10 10 10 11 20 20 5 Most Carried 13 | 7 10 10 10 10 10 10 13 12 Average Carried 8 | 5 8 10 9 9 9 8 11 4 Final Capacity 20 | 8 10 10 10 10 20 20 20 5 Final Carried 13 | 7 10 10 10 9 10 10 13 4 Class Distribution -------------------- 57% | Scavenger-Mutant 30% | Mutant 11% | Hacker-Mutant Dominant Class ---------------- Mutant | -10/Materials Mutant | -10/Mines Mutant | -9/Materials Scavenger-Mutant | -9/Mines Mutant | -9/Exiles Scavenger-Mutant | -8/Mines Scavenger-Mutant | -8/Materials Hacker-Mutant | -7/Factory Resources | -11 -10 -10 -9 -9 -9 -8 -8 -7 ----------- Run | Yrd Mat Min Mat Min Exi Min Mat Fac Matter Collected 1490 | 260 199 73 309 308 . 125 97 119 Remotely . | . . . . . . . . . Salvage Created 1893 | 134 247 96 834 300 . 53 88 141 Parts 105 | 4 13 8 43 9 . 10 6 12 Haulers Intercepted 3 | . . . 3 . . . . . Recyclers Shooed 1 | . 1 . . . . . . . Parts Field Recycled . | . . . . . . . . . Retrieved Matter . | . . . . . . . . . Parts Self-Destructed . | . . . . . . . . . Prevented . | . . . . . . . . . Kills | -11 -10 -10 -9 -9 -9 -8 -8 -7 ------- Run | Yrd Mat Min Mat Min Exi Min Mat Fac Combat Hostiles Destroyed 46 | . 6 2 9 18 . 8 1 2 Melee 1 | . . . . . . . . 1 Guns 29 | . 6 2 9 11 . . 1 . AOE 16 | . . . . 7 . 8 . 1 Classes Destroyed 15 | 2 4 . 4 3 . . . 2 Worker 2 | . 1 . . 1 . . . . Builder 1 | . . . . . . . . 1 Tunneler 5 | 2 . . . 1 . 1 . 1 Hauler 3 | . . . 3 . . . . . Recycler 5 | 1 . . 3 . . . . 1 Operator 2 | . . . 1 . . . . 1 Watcher 3 | . 2 . . . . . 1 . Swarmer 12 | . 3 . . . . 8 . 1 Grunt 11 | . 3 2 4 2 . . . . Brawler 1 | . . . 1 . . . . . Duelist 1 | . . . . 1 . . . . Sentry 5 | . . . 4 . . . 1 . Demolisher 2 | . . . . 2 . . . . Programmer 1 | . . . . . . . . 1 Assembled 13 | . . . . 13 . . . . Best Kill Streak 14 | 2 4 2 4 14 . 4 1 3 Combat Bots Only 13 | . 4 2 4 13 . 4 1 1 Max Kills in Single Turn 4 | 1 1 1 2 4 . 4 1 1 Gunslinging 1 | . . . 1 . . . . . Exploded 4 | . . . . 4 . 4 . 1 Melee 1 | . . . . . . . . 1 Uniques/NPCs Destroyed . | . . . . . . . . . Combat | -11 -10 -10 -9 -9 -9 -8 -8 -7 -------- Run | Yrd Mat Min Mat Min Exi Min Mat Fac Hostile Shots Fired 240 | . 66 7 26 49 . 5 33 54 Missed 68 | . 17 4 4 15 . . 10 18 Hits 172 | . 49 3 22 34 . 5 23 36 Melee 7 | . . . . 7 . . . . Projectile 165 | . 49 3 22 27 . 5 23 36 AOE 5 | . . . . 5 . . . . Critical Strikes 9 | . 1 1 3 1 . . 2 1 Damage Taken 2844 | . 522 43 320 898 . 135 373 553 Core 587 | . 70 . 89 145 . 19 40 224 Absorbed by Shields . | . . . . . . . . . Core Remaining (%) 75 | 100 . 72 . . . 36 92 . Volleys Fired 140 | 9 28 4 34 31 . 8 17 9 Largest 2 | 2 2 2 2 2 . 2 2 1 Hottest 100 | 90 46 46 46 46 . 46 100 100 Shots Fired 257 | 18 56 8 68 58 . 12 28 9 Gun 234 | 18 56 8 68 54 . 8 22 . Cannon . | . . . . . . . . . Launcher 16 | . . . . 4 . 4 . 8 Special 7 | . . . . . . . 6 1 Kinetic 216 | . 56 8 68 54 . 8 22 . Thermal 25 | 18 . . . . . . 6 1 Explosive 16 | . . . . 4 . 4 . 8 Electromagnetic . | . . . . . . . . . Robot Hit Streak 36 | 6 15 10 36 10 . 10 5 8 Robot Miss Streak 2 | 2 2 . 2 2 . 1 2 1 Penetration Max . | . . . . . . . . . Secondary Targets 5 | . 1 . 1 3 . . . . Max Gunslinging Chain 1 | . 1 . 1 1 . . . . Shots Hit Robots 198 | 12 39 8 59 43 . 8 16 13 Core Hits 95 | 4 10 3 23 32 . 11 4 8 Critical Kills 1 | . 1 . . . . . . . Critical Parts Destroyed 3 | . 1 . . 1 . . . 1 Critical Strikes 5 | . 2 . . 1 . . . 2 Destroy 3 | . 2 . . 1 . . . . Smash 1 | . . . . . . . . 1 Sever 1 | . . . . . . . . 1 Melee Attacks 22 | . . . . . . . 2 20 Impact 12 | . . . . . . . 2 10 Slashing 10 | . . . . . . . . 10 Piercing . | . . . . . . . . . Sneak Attacks 4 | . . . . . . . . 4 Combat Hostiles . | . . . . . . . . . Follow-up Attacks . | . . . . . . . . . Damage Inflicted 4345 | 145 625 128 963 1074 . 587 250 573 Guns 2763 | 145 621 128 963 589 . 91 226 . Cannons . | . . . . . . . . . Explosions 1171 | . . . . 467 . 493 . 211 Melee 362 | . . . . . . . . 362 Ramming 25 | . 4 . . 18 . 3 . . Kinetic 2618 | . 621 128 963 589 . 91 226 . Thermal 169 | 145 . . . . . . 24 . Explosive 1171 | . . . . 467 . 493 . 211 Electromagnetic . | . . . . . . . . . Impact 137 | . . . . . . . . 137 Slashing 225 | . . . . . . . . 225 Piercing . | . . . . . . . . . Highest Corruption 1 | . . . . 1 1 1 . . Average Corruption 1 | . . . . 1 1 1 . . Corruption Purged . | . . . . . . . . . Corruption Blocked . | . . . . . . . . . Effects 14 | . . . . 5 3 6 . . Message Errors 3 | . . . . 2 1 . . . Matter Fused 3 | . . . . 2 1 . . . Heat Flow Errors 2 | . . . . . 1 1 . . Energy Discharges 4 | . . . . 1 . 3 . . Data Loss (minor) 1 | . . . . . . 1 . . Data Loss (major) 1 | . . . . . . 1 . . Overload Shots . | . . . . . . . . . Overflow Damage 119 | . . . . 40 . 27 . 52 Projectiles . | . . . . . . . . . Explosions 67 | . . . . 40 . 27 . . Melee 52 | . . . . . . . . 52 Knockbacks . | . . . . . . . . . Impact . | . . . . . . . . . Kinetic . | . . . . . . . . . Secondary . | . . . . . . . . . Self-Inflicted Damage 262 | . . . . 188 . 74 . . Shots 7 | . . . . 4 . 3 . . Rammed 5 | . 2 . . 2 . 1 . . Targets Rammed 7 | . 2 . . 4 . 1 . . Kicked . | . . . . . . . . . Crushed 2 | . . . . 2 . . . . Highest Temperature 217 | 90 22 . 5 . 217 143 115 12 Average Temperature 37 | 36 7 . 5 . 114 73 45 7 Received Heat Transfer 757 | . 198 33 132 106 . . 216 72 Siege Activations . | . . . . . . . . . Martial Activations . | . . . . . . . . . Shielding Activations . | . . . . . . . . . Robots Disrupted . | . . . . . . . . . Combat Hostiles . | . . . . . . . . . Robots Corrupted 1 | . . . . . . . . 1 Combat Hostiles . | . . . . . . . . . Parts Fried 2 | . . . . . . . . 2 Impact Corruptions 2 | . . . . . . . . 2 Robots Melted . | . . . . . . . . . Combat Hostiles . | . . . . . . . . . Parts Melted . | . . . . . . . . . Heat Transferred 446 | 396 . . . . . . 50 . Parts Sabotaged . | . . . . . . . . . Parts Stolen . | . . . . . . . . . Parts Stripped . | . . . . . . . . . Power Chain Reactions . | . . . . . . . . . Alert | -11 -10 -10 -9 -9 -9 -8 -8 -7 ------- Run | Yrd Mat Min Mat Min Exi Min Mat Fac Maximum Alert Level . | . . . . . . . . . Low Security (%) 100 | 100 100 100 100 100 . 100 100 100 Level 1 . | . . . . . . . . . Level 2 . | . . . . . . . . . Level 3 . | . . . . . . . . . Level 4 . | . . . . . . . . . Level 5 . | . . . . . . . . . High Security . | . . . . . . . . . Max Security . | . . . . . . . . . Peak Influence 171 | 5 145 75 96 60 . 171 64 88 Initial 59 | . . 45 25 9 . . 59 . Average 23 | . 40 49 51 6 . 43 17 8 Influence Increases 1294 | 15 261 50 295 156 . 275 52 190 Destroy 0b10 Robot/C 680 | . 120 40 180 100 . 180 20 40 Destroy 0b10 Robot/NC 110 | 15 15 . 35 10 . 5 10 20 Destroy Leader 172 | . 24 10 66 20 . 30 12 10 Allied During Kill 24 | . . . . . . 24 . . Successful Hack 43 | . 26 . 13 . . . 4 . Disable Machine 15 | . 15 . . . . . . . Destroy Structure 100 | . 1 . 1 26 . 36 6 30 Lose Combat Pursuer 150 | . 60 . . . . . . 90 Influence Decreases 1224 | 15 145 101 336 180 . 122 205 120 Entered New Map 220 | . . 71 40 15 . . 94 . Time Decay 893 | 15 135 30 286 155 . 112 70 90 Lost Part 71 | . 10 . 10 10 . 10 1 30 Purge Threat 40 | . . . . . . . 40 . Squads Dispatched 6 | . . . 1 . . . 3 2 Investigation . | . . . . . . . . . Extermination 1 | . . . . . . . . 1 Reinforcement 5 | . . . 1 . . . 3 1 Assault . | . . . . . . . . . Garrison . | . . . . . . . . . Intercept . | . . . . . . . . . Searches Triggered . | . . . . . . . . . Construction Impeded . | . . . . . . . . . Haulers Reinforced . | . . . . . . . . . Active Scanning Responses . | . . . . . . . . . Cargo Convoy Interrupts . | . . . . . . . . . Stealth | -11 -10 -10 -9 -9 -9 -8 -8 -7 --------- Run | Yrd Mat Min Mat Min Exi Min Mat Fac Distress Signals 2 | . 1 . . . . . 1 . Communications Jammed . | . . . . . . . . . Distress Signals . | . . . . . . . . . Times Spotted 82 | . 15 4 10 24 . 8 6 15 Peak Tracking Total 7 | . 6 2 2 6 . 4 3 7 Tactical Retreats 4 | . 1 . . 1 . . . 2 Traps | -11 -10 -10 -9 -9 -9 -8 -8 -7 ------- Run | Yrd Mat Min Mat Min Exi Min Mat Fac Traps Triggered . | . . . . . . . . . Indirectly . | . . . . . . . . . Trap Hack Attempts . | . . . . . . . . . Triggered . | . . . . . . . . . Disarmed 6 | . . . . . . . 6 . Reprogrammed . | . . . . . . . . . Reused . | . . . . . . . . . Traps Extracted . | . . . . . . . . . Installed . | . . . . . . . . . Triggered . | . . . . . . . . . Machines | -11 -10 -10 -9 -9 -9 -8 -8 -7 ---------- Run | Yrd Mat Min Mat Min Exi Min Mat Fac Machines Disabled 1 | . 1 . . . . . . . Max in Single Turn 1 | . 1 . . . . . . . Machines Repaired . | . . . . . . . . . Machines Dismantled . | . . . . . . . . . Machines Sabotaged . | . . . . . . . . . Overloaded Fab Kills . | . . . . . . . . . Hacking | -11 -10 -10 -9 -9 -9 -8 -8 -7 --------- Run | Yrd Mat Min Mat Min Exi Min Mat Fac Machines Accessed 19 | . 6 . 3 3 2 . 3 2 Terminals 15 | . 6 . 3 1 . . 3 2 Fabricators . | . . . . . . . . . Repair Stations . | . . . . . . . . . Recycling Units . | . . . . . . . . . Scanalyzers . | . . . . . . . . . Garrison Access . | . . . . . . . . . Total Hacks 64 | . 25 . 12 4 3 . 14 6 Successful 47 | . 18 . 9 3 3 . 11 3 Failed 16 | . 6 . 3 1 . . 3 3 Catastrophic 2 | . . . 1 1 . . . . Database Lockouts 1 | . 1 . . . . . . . Manual 36 | . 17 . 9 1 1 . 6 2 Terminals 59 | . 25 . 12 2 . . 14 6 Fabricators . | . . . . . . . . . Repair Stations . | . . . . . . . . . Recycling Units . | . . . . . . . . . Scanalyzers . | . . . . . . . . . Garrison Access . | . . . . . . . . . Terminal Hacks 33 | . 12 . 6 3 3 . 8 1 Record 2 | . . . . . 2 . . . Robot Analysis 4 | . 2 . 2 . . . . . Prototype ID Bank 2 | . . . . . . . 2 . Open Door 2 | . . . . 2 . . . . Branch Access Points 1 | . . . 1 . . . . . Emergency Access Points 2 | . 1 . . . . . 1 . Terminal Index 1 | . . . 1 . . . . . Alert Level 4 | . 2 . . . . . 2 . Unreport Threat 1 | . . . . . . . 1 . Locate Traps 2 | . 1 . . . . . 1 . Disarm Traps 1 | . . . . . . . 1 . Maintenance Status 1 | . . . 1 . . . . . Patrol Status 1 | . 1 . . . . . . . Transport Status 1 | . 1 . . . . . . . Investigation Status 1 | . 1 . . . . . . . Hauler Manifests 2 | . 1 . 1 . . . . . Registered Prototypes 1 | . 1 . . . . . . . Zone Layout 3 | . 1 . . 1 . . . 1 Proto ID Catalog 1 | . . . . . 1 . . . Fabricator Hacks . | . . . . . . . . . Repair Station Hacks . | . . . . . . . . . Recycling Unit Hacks . | . . . . . . . . . Scanalyzer . | . . . . . . . . . Garrison Access Hacks . | . . . . . . . . . Unauthorized Hacks 14 | . 6 . 3 . . . 3 2 Terminals 14 | . 6 . 3 . . . 3 2 Botnet 14 | . 6 . 3 . . . 3 2 Fabricators . | . . . . . . . . . Repair Stations . | . . . . . . . . . Recycling Units . | . . . . . . . . . Scanalyzers . | . . . . . . . . . Garrison Access . | . . . . . . . . . Data Cores Recovered 1 | . . . . . . . 1 . Used . | . . . . . . . . . Hacking Detections 13 | . 5 . 2 1 . . 3 2 Full Trace Events . | . . . . . . . . . Feedback Events . | . . . . . . . . . Feedback Blocked . | . . . . . . . . . Robot Schematics Acquired . | . . . . . . . . . Robots Built . | . . . . . . . . . Authchips . | . . . . . . . . . Time . | . . . . . . . . . Total Robot Build Rating . | . . . . . . . . . Part Schematics Acquired . | . . . . . . . . . Parts Built . | . . . . . . . . . Authchips . | . . . . . . . . . Time . | . . . . . . . . . Total Part Build Rating . | . . . . . . . . . Parts Repaired . | . . . . . . . . . Time . | . . . . . . . . . Parts Recycled . | . . . . . . . . . Recycled Matter . | . . . . . . . . . Retrieved Matter . | . . . . . . . . . Retrieved Components . | . . . . . . . . . Parts Scanalyzed . | . . . . . . . . . Part Schematics Acquired . | . . . . . . . . . Parts Damaged . | . . . . . . . . . Bothacking | -11 -10 -10 -9 -9 -9 -8 -8 -7 ------------ Run | Yrd Mat Min Mat Min Exi Min Mat Fac Used RIF Installer . | . . . . . . . . . Robots Hacked . | . . . . . . . . . Non-combat . | . . . . . . . . . Combat . | . . . . . . . . . Robot Hacks Applied . | . . . . . . . . . Relay Couplers Released . | . . . . . . . . . Fabnet Peak Effective % . | . . . . . . . . . Robots Rewired . | . . . . . . . . . Allies Hacked . | . . . . . . . . . Hacks Repelled . | . . . . . . . . . Allies | -11 -10 -10 -9 -9 -9 -8 -8 -7 -------- Run | Yrd Mat Min Mat Min Exi Min Mat Fac Total Allies 4 | . . . . 4 . . . . Largest Group 3 | . . . . 3 3 2 2 . Highest-Rated Group 40 | . . . . 40 40 32 32 . Highest-Rated Ally 31 | . . . . 31 16 16 16 . Total Orders . | . . . . . . . . . Ally Attacks 32 | . . . . 6 . 16 10 . Total Damage 283 | . . . . 22 . 133 128 . Kills 3 | . . . . 1 . 1 1 . Allies Corrupted . | . . . . . . . . . Allies Melted . | . . . . . . . . . Intel | -11 -10 -10 -9 -9 -9 -8 -8 -7 ------- Run | Yrd Mat Min Mat Min Exi Min Mat Fac Active Infowar (turns) 1921 | 1 362 . 46 . 220 413 313 566 Optics 46 | . . . 46 . . . . . Terrain 363 | 1 362 . . . . . . . T.N.C. 1512 | . . . . . 220 413 313 566 Robot Analysis Total 4 | . 2 . 2 . . . . . Derelict Logs Recovered 1 | . . . . 1 . . . . Drone Launches . | . . . . . . . . . Drone Recoveries . | . . . . . . . . . Exploration | -11 -10 -10 -9 -9 -9 -8 -8 -7 ------------- Run | Yrd Mat Min Mat Min Exi Min Mat Fac Turns Passed 4367 | 144 542 74 638 1275 402 413 313 566 Spaces Moved 2340 | 65 267 35 287 719 236 177 127 427 Core 3 | 3 . . . . . . . . Treads 1763 | 62 267 35 287 719 236 111 46 . Legs . | . . . . . . . . . Wheels 163 | . . . . . . 66 81 16 Hover 227 | . . . . . . . . 227 Flight 184 | . . . . . . . . 184 Fastest Speed 34 | 50 160 160 160 160 160 155 155 34 Average Speed 158 | 154 160 160 166 160 169 213 186 110 Slowest Speed 320 | 160 160 160 240 240 240 320 320 155 Overloaded Moves . | . . . . . . . . . Propulsion Burnouts . | . . . . . . . . . Robots Hopped . | . . . . . . . . . Potential Cave-ins . | . . . . . . . . . Cave-ins Triggered . | . . . . . . . . . Exploration Rate (%) 36 | 6 52 13 23 96 60 49 16 15 Regions Visited 8 Branch Regions 4 Pre-discovered Areas 1 | . . . . . 1 . . . Known Exits Taken 1 | . . . 1 . . . . . Unknown Exits Taken 7 | 1 1 1 . 1 1 1 1 . Scrap Searched 4 | . . . . 2 . 2 . . Spaces Dug 38 | . . . . 13 . 9 6 10 Terrain Destroyed 135 | . . . . 47 . 52 6 30 Melee 12 | . . . . . . . 2 10 Projectile 4 | . . . . . . . 4 . AOE 119 | . . . . 47 . 52 . 20 Terrain Rammed . | . . . . . . . . . Walls Destroyed . | . . . . . . . . . Machines Disabled . | . . . . . . . . . Actions | -11 -10 -10 -9 -9 -9 -8 -8 -7 --------- Run | Yrd Mat Min Mat Min Exi Min Mat Fac Total 2696 | 87 326 45 384 776 242 195 159 482 Wait 62 | . 7 7 37 6 . . 5 . Move 2332 | 64 266 34 286 718 235 176 126 427 Hop . | . . . . . . . . . Pick Up 25 | 7 7 . 5 2 . 2 2 . Fast Attach 28 | 6 4 . 5 2 1 2 3 5 Attach 12 | . 1 . 1 2 . 2 . 6 Detach 6 | . . . 1 . 2 . 1 2 Swap 27 | 1 3 . 5 7 1 4 3 3 Drop 34 | . 8 . 10 3 3 . . 10 Fire 140 | 9 28 4 34 31 . 8 17 9 Melee 22 | . . . . . . . 2 20 Ram . | . . . . . . . . . Kick . | . . . . . . . . . Crush 7 | . 2 . . 4 . 1 . . Escape Stasis . | . . . . . . . . . Rewire 1 | . . . . 1 . . . . Trap . | . . . . . . . . . Miscellaneous . | . . . . . . . . . Route ------- -11/Scrapyard -10/Materials (discovered 2 exits: *Mat / [*Min]) -10/Mines -9/Materials (discovered 3 exits: *Mat / *Min x2) -9/Mines (discovered 3 exits: *Mat x2 / *Exi) -9/Exiles -8/Mines -8/Materials -7/Factory History --------- Turn | Location | Event 21 | -11/Scrapyard | Discovered new exit (range 16) 145 | -11/Scrapyard | Entered Materials 186 | -10/Materials | Discovered new exit (range 16) 262 | -10/Materials | Central database locked down 313 | -10/Materials | Build established: Mutant 356 | -10/Materials | Discovered new exit (range 10) 687 | -10/Materials | Entered Mines 745 | -10/Mines | Discovered new exit (range 6) 761 | -10/Mines | Entered Materials 761 | -9/Materials | Evolved 2 slots: Propulsion x1, Utility x1 787 | -9/Materials | Identified exit to Mines 1215 | -9/Materials | Discovered new exit (range 7) 1387 | -9/Materials | Build established: Scavenger-Mutant 1399 | -9/Materials | Entered Mines 1417 | -9/Mines | Met a Derelict bent on vengeance 1508 | -9/Mines | Learned 2 Materials zone layouts 1596 | -9/Mines | Found the Drone Emporium 1723 | -9/Mines | Discovered new exit (range 3) 1727 | -9/Mines | Received a Mining Laser from a helpful Derelict 1796 | -9/Mines | Discovered new exit (range 15) 1858 | -9/Mines | Assembled infested the area 1863 | -9/Mines | Assisted by a Guerilla fighting off Assembled 1931 | -9/Mines | Met a Derelict who couldn't figure out how to use a Trap Extractor 2108 | -9/Mines | Core integrity fell below 50% 2137 | -9/Mines | Destroyed 13 combat bots 2590 | -9/Mines | Assisted by bots powering up and referring to "LRC-V3" 2666 | -9/Mines | Deemed a non-threat by the Exiles lab entrance 2667 | -9/Mines | Discovered new exit (range 5) 2674 | -9/Mines | Entered Exiles 2674 | -9/Exiles | Accompanied by 3 allies 2713 | -9/Exiles | Met 8R-AWN 2743 | -9/Exiles | Met EX-HEX 2785 | -9/Exiles | Met EX-BIN 2804 | -9/Exiles | Aligned with FarCom system 2806 | -9/Exiles | Given EX-Vault access code 2844 | -9/Exiles | Opened EX-Vault 2856 | -9/Exiles | Found Modified TNC 2891 | -9/Exiles | Warned to stay clear of 0b10 Research branches 2942 | -9/Exiles | Met EX-DEC 2952 | -9/Exiles | Learned location of Zion (-6) 3052 | -9/Exiles | Discovered new exit (range 12) 3076 | -9/Exiles | Left Exiles lab with Modified TNC 3076 | -9/Exiles | Entered Mines 3076 | -8/Mines | Accompanied by 3 allies 3478 | -8/Mines | Discovered new exit (range 8) 3489 | -8/Mines | Entered Materials 3489 | -8/Materials | Accompanied by 2 allies 3489 | -8/Materials | Evolved 2 slots: Propulsion x2 3685 | -8/Materials | Discovered new exit (range 16) 3802 | -8/Materials | Entered Factory 3802 | -7/Factory | Evolved 2 slots: Utility x2 4138 | -7/Factory | Build established: Hacker-Mutant 4368 | -7/Factory | Self-destructed Last Messages --------------- 04286_ Sneak attack on O-24 Administrator. 04286_ O-24 Administrator destroyed. 04288_ K-01 Serf collects debris. 04290_ Acquired System Shield. 04304_ Lgt. Armor Plating destroyed. 04308_ Acquired Chainsword. 04321_ Sneak attack on T-07 Excavator. 04321_ T-07 Excavator destroyed. 04323_ U-05 Engineer builds a Wall. 04323_ Acquired 10 matter. 04328_ Sneak attack on R-06 Scavenger. 04328_ R-06 Scavenger destroyed. 04331_ Acquired 67 matter. 04331_ Acquired 25 matter. 04332_ Acquired Imp. Hover Unit. 04341_ Gravmag System destroyed. 04342_ S-27 Virus Autogun severed. 04348_ S-27 Virus destroyed. 04351_ Lgt. Nuclear Core destroyed. 04364_ Hacking Suite destroyed. Map ----- +----------------------------------------------------+ | ??????? #?###+####?####+#####// #??# | | ??????? #?# #?# #// = #??# | | ??????? #?# #?# """ #/ ! #### | | ??????? #?# """ #?# """ # = !## | | ??????? #?# """ #?# """ ####/###### !! | | ??????? #?# """ #?# #?# !! | | ??????? #?# #?# !!#?# | | ???????????????????# !!#?# ! | | ???????????????????# #?# | | ???????????????????# =! #?# ###+ | | ???????????????????#####+####?# ############# | | ???????????????????????# #????# ############# | | ??????????????????????##!#????# ## ! ## "" | | ??????????????????????# =#????# ## ## "" | | ??????????????????????#T #???## ## ## "" | | ??????????????????????## #???# # ## | | ??????????????????###### #####!"" # """ """ ""### | | ?????????????"" + =!/ *T + "G """ ###?? | | ??????????????????############ # """ """ #???? | | ??????????????????# ! ] ## # #???? | | ??????????????????? #### #######/#####???? | | ??????????????????# """ """ #??# #?????# #???????? | | ??????????????????# """ """ #??# #?????# #???????? | | ??????????????????# """ """ #??# #?#####/####????? | | ??????????????????# g #??#[#?# #????? | | ??????????????????# ! s @gs####%### #????? | | ??????????????????####+####g## = # #????? | | ???????????? ! # """""" #????? | | ???????????? T + """""" #????? | | ???????????? # """""" #????? | | ????????????? ################ # """""" #????? | | ?????????????????????????????####### ? #????? | | ???????????????????????????????????# ?#????? | | ???????????????????????????????????#########?????? | | ?????????????????????????????????????????????????? | | ?????????????????????????????????????????????????? | | ?????????????????????????????????????????????????? | | ?????????????????????????????????????????????????? | | ?????????????????????????????????????????????????? | | ?????????????????????????????????????????????????? | | ?????????????????????????????????????????????????? | | ?????????????????????????????????????????????????? | | ?????????????????????????????????????????????????? | | ?????????????????????????????????????????????????? | | ?????????????????????????????????????????????????? | | ?????????????????????????????????????????????????? | | ?????????????????????????????????????????????????? | | ?????????????????????????????????????????????????? | | ?????????????????????????????????????????????????? | | ?????????????????????????????????????????????????? | +----------------------------------------------------+ Best States ------------- Heat Dissipation 56 Energy Generation 18 Energy Capacity 265 Matter Stores 300 Matter Capacity 300 Sight Range 18 Terrain Scan Range 16 Terrain Scan Density 10 Armor Coverage 150 Evasion (%) 53 Targeting Accuracy 5 Recoil Reduction 3 Offensive Hacking 20 Defensive Hacking 10 Item Schematics ----------------- None Robot Schematics ------------------ None Fabricated ------------ Nothing Repaired ---------- Nothing Alien Tech Used ----------------- None Achievements -------------- None Challenges ------------ None Game ------ Seed ResetPhasingBank Manual? 0 Play Time 00:34:54 Cumulative 19.0 hours Start 2025.10.10 @ 16:45:25 End 2025.10.10 @ 17:20:22 Sessions 3 Manual Loads 0 Difficulty Rogue Special Mode None Game No. 34 Rogue 34 Adventurer 0 Explorer 0 Win Type - Total 0 Types 0/0/0/0/0/0/0/0/0/0 Lore% 20 Gallery% 29 Achievement% 30 Wizard Run 0 Options --------- Layout 1 ASCII 0 Keyboard 0 Movement Numpad Keybinds 0 Fullscreen 2 Font 24/Smallcaps Map View 50x35 Zoom Use 0% Tactical HUD 1 Map Filters NONE Filters NONE Steam 1 RUN: 0e977b79-e229-4254-aa70-f119e0289f38